bitfinex/quotes_ETHUSD_20250605
["timestamp","ask_amount","ask_price","bid_price","bid_amount"]
[1749157195044,10.905,2401.8,2400.6,5.72172517]
[1749157195045,4.16471541,2401.2,2400.6,5.72172517]
[1749157195245,4.16371736,2401.7,2400.7,4.1654304]
[1749157195474,4.16454366,2401.3,2400.7,4.16539585]
[1749157195785,1.5862,2402.0,2400.9,4.16500341]
[1749157195786,10.904,2401.4,2400.9,4.16500341]
[1749157195940,10.904,2401.4,2400.8,4.16526318]
[1749157196141,4.16444851,2401.3,2400.8,4.16526318]
[1749157196354,4.16444851,2401.3,2400.7,4.16534138]
[1749157196571,4.16444851,2401.3,2400.6,5.7216465]
[1749157196773,4.16393871,2401.6,2401.0,4.16478987]
[1749157196977,15.06767227,2401.8,2400.9,4.16495626]
[1749157197149,4.16398837,2401.6,2401.0,4.16477551]
[1749157197473,4.1638457,2401.7,2400.9,4.16500451]
[1749157197674,4.16421251,2401.5,2400.9,4.16500451]
[1749157197837,4.16385328,2401.7,2400.7,4.16545174]
[1749157198039,10.904,2401.8,2400.7,1.18358743]
[1749157198239,4.16384266,2401.7,2401.1,4.16463743]
[1749157198478,10.903,2401.8,2400.6,1.5561]
[1749157198680,4.16431922,2401.4,2400.9,4.16497187]
[1749157198862,4.1645826,2401.3,2400.6,5.72164157]
[1749157199050,10.903,2401.8,2400.6,1.5561]
[1749157199255,4.16496507,2401.0,2400.6,1.5561]
[1749157199453,10.901,2401.0,2400.6,1.5561]
[1749157199643,10.901,2401.0,2400.6,5.72171477]
[1749157199844,10.901,2401.0,2400.6,5.72170263]
[1749157200155,15.06419264,2401.5,2400.9,4.16495202]
[1749157200485,10.9,2401.5,2400.7,4.16538384]
[1749157200788,10.9,2401.5,2400.7,4.16532893]
[1749157200789,4.164338,2401.4,2400.7,4.16532893]
[1749157200946,4.1642435,2401.4,2400.9,4.16500473]
[1749157201141,10.9,2401.5,2400.6,1.5561]
[1749157201348,10.9,2401.5,2400.3,4.16606242]
[1749157201349,0.15873269,2399.2,2398.2,4.1209008]
[1749157201643,0.15873269,2399.9,2398.3,10.97755386]
[1749157201842,10.898,2400.1,2398.8,4.16875104]
[1749157202113,10.898,2400.1,2398.9,9.003]
[1749157202114,0.15873269,2400.1,2398.9,9.003]
[1749157202272,0.15873269,2400.9,2399.5,10.97755386]
[1749157202465,0.15873269,2401.1,2400.2,16.0]
[1749157202666,0.15873269,2401.1,2400.4,16.0]
[1749157202887,0.15873269,2401.6,2400.4,4.16597233]
[1749157203181,0.15873269,2401.6,2400.9,4.16500526]
[1749157203182,0.15873269,2401.3,2400.9,4.16500526]
[1749157203391,0.15873269,2401.5,2401.1,4.16464564]
[1749157203606,1.5399,2402.0,2400.5,16.0]
[1749157203742,1.69863269,2403.0,2401.2,10.97755386]
[1749157203944,0.15873269,2404.4,2402.1,0.55]
[1749157204191,0.15873269,2404.1,2402.9,16.0]
[1749157204347,0.15873269,2403.6,2403.1,4.16117327]
[1749157204542,10.97755386,2404.5,2402.7,17.43645]
[1749157204543,0.15873269,2403.0,2402.7,1.43645]
[1749157204853,4.16107129,2403.3,2402.2,13.16572787]
[1749157204854,0.15873269,2402.7,2402.2,9.003]
[1749157205061,0.15873269,2402.7,2401.9,4.16330613]
[1749157205062,1.72023269,2402.5,2401.1,9.002]
[1749157205377,0.15873269,2402.1,2401.1,9.002]
[1749157205547,0.15873269,2401.6,2401.1,9.002]
[1749157205746,0.15873269,2401.9,2401.1,9.002]
[1749157205968,0.15873269,2401.7,2401.1,9.002]
[1749157206164,0.15873269,2401.5,2400.1,4.57589146]
[1749157206378,1.5615,2401.9,2400.2,1.35778915]
[1749157206379,0.15873269,2401.2,2400.2,1.35778915]
[1749157206604,0.15873269,2401.6,2400.1,4.16649306]
[1749157206789,0.15873269,2402.3,2400.1,10.893]
[1749157206995,0.15873269,2402.3,2401.4,16.55]
[1749157207300,0.15873269,2402.3,2401.4,5.66428968]
[1749157207507,0.15873269,2401.9,2401.4,1.5002]
[1749157207707,0.15873269,2401.9,2401.4,17.5002]
[1749157207907,0.15873269,2401.7,2401.3,9.002]
[1749157208224,0.15873269,2401.5,2401.3,4.16428692]
[1749157208509,0.15873269,2401.7,2401.2,4.16455948]
[1749157208665,0.15873269,2401.5,2400.8,16.0]
[1749157208865,0.15873269,2401.5,2400.8,4.16519925]
[1749157209071,4.32319193,2401.3,2400.8,16.0]
[1749157209369,0.15873269,2400.9,2400.3,9.002]
[1749157209568,4.16261892,2402.4,2400.3,9.002]
[1749157209569,0.15873269,2401.5,2401.4,4.16423752]
[1749157209805,0.15873269,2401.5,2400.6,4.16562526]
[1749157209806,1.68823269,2402.2,2400.9,4.16510475]
[1749157210023,0.4092339,2402.6,2401.6,1.5953]
[1749157210182,0.15873269,2402.8,2402.7,4.16198443]
[1749157210383,4.15905567,2404.4,2401.8,20.163544]
[1749157210384,0.15873269,2403.2,2403.1,4.16129166]
[1749157210588,0.15873269,2403.1,2402.5,1.5953]
[1749157211027,0.15873269,2403.3,2403.1,4.16116255]
[1749157211203,0.15873269,2403.7,2402.8,4.16181122]
[1749157211367,0.15873269,2403.7,2402.4,16.0]
[1749157211368,0.15873269,2403.1,2401.9,1.5182]
[1749157211568,0.15873269,2402.6,2401.9,1.5182]
[1749157211795,0.15873269,2402.9,2401.9,1.5182]
[1749157211995,1.5589,2403.1,2401.6,9.002]
[1749157211996,0.15873269,2402.1,2401.6,9.002]
[1749157212180,0.15873269,2402.3,2402.0,4.16319733]
[1749157212396,0.15873269,2402.9,2402.0,0.41631973]
[1749157212709,0.15873269,2402.7,2402.1,0.347522]
[1749157212907,0.15873269,2402.6,2402.1,4.51042253]
[1749157213113,0.15873269,2402.4,2402.1,0.347522]
[1749157213298,0.15873269,2401.7,2401.6,9.002]
[1749157213505,0.15873269,2402.5,2401.6,9.002]
[1749157213702,0.15873269,2402.5,2401.9,4.16337066]
[1749157213901,10.887,2402.9,2401.7,17.31659236]
[1749157213902,11.04573269,2402.9,2402.0,4.16319733]
[1749157214071,11.04573269,2402.9,2401.7,17.31659236]
[1749157214072,0.15873269,2402.4,2401.7,17.31659236]
[1749157214276,4.16294515,2402.2,2401.7,16.0]
[1749157214515,0.15873269,2402.3,2401.0,1.5972]
[1749157214814,10.887,2402.9,2400.5,13.015]
[1749157214815,0.15873269,2401.0,2400.8,4.16513331]
[1749157215014,4.16476896,2401.1,2400.5,13.16666088]
[1749157215231,4.16546447,2400.7,2400.6,0.34773915]
[1749157215427,4.16545174,2400.7,2400.6,0.34773915]
[1749157215715,0.15873269,2400.7,2400.6,0.34773915]
[1749157216213,4.32418443,2400.7,2400.6,0.34773915]
[1749157216427,0.15873269,2400.0,2399.6,0.40783849]
[1749157216579,4.16562526,2400.6,2399.6,0.40783849]
[1749157216580,0.15873269,2399.7,2399.6,0.40783849]
[1749157216982,5.90952025,2399.7,2399.6,0.40783849]
[1749157217180,0.15873269,2399.5,2398.3,9.001]
[1749157217382,4.16911377,2398.6,2398.3,9.001]
[1749157217678,1.5836,2399.2,2398.3,9.001]
[1749157217679,0.15873269,2399.7,2398.4,1.5972]
[1749157217979,0.15873269,2401.3,2401.2,4.16458437]
[1749157218209,0.15873269,2401.1,2400.4,16.0]
[1749157218408,0.15873269,2400.9,2398.6,1.6149]
[1749157218621,0.15873269,2398.9,2398.1,1.6149]
[1749157218784,0.15873269,2399.5,2398.1,12.59245386]
[1749157218981,0.15873269,2399.3,2399.1,4.1681197]
[1749157219186,0.15873269,2399.6,2399.0,9.003]
[1749157219398,0.15873269,2400.6,2399.1,1.6149]
[1749157219585,0.15873269,2401.3,2400.2,0.55]
[1749157219779,1.5731,2401.8,2400.8,0.55]
[1749157220116,1.12491624,2403.9,2400.3,13.16914589]
[1749157220117,1.5731,2402.6,2402.1,4.1629262]
[1749157220322,1.5731,2402.6,2401.4,16.55]
[1749157220518,5.73533579,2402.6,2401.6,4.16385127]
[1749157220818,4.16292809,2402.2,2401.2,1.6149]
[1749157221032,10.884,2402.3,2400.7,20.16536951]
[1749157221234,4.16375765,2401.7,2400.6,1.6149]
[1749157221541,1.5731,2402.6,2401.5,20.16403688]
[1749157221692,5.73443211,2403.1,2402.5,4.16219672]
[1749157221897,1.5731,2403.6,2402.5,0.41621967]
[1749157222096,10.97755386,2405.2,2403.0,16.0]
[1749157222392,10.97755386,2405.2,2402.7,12.59245386]
[1749157222393,1.5731,2405.1,2403.3,0.55]
[1749157222623,4.15652273,2405.9,2403.1,9.003]
[1749157222624,1.5731,2404.7,2403.1,9.003]
[1749157222821,1.5731,2404.7,2402.1,10.97755386]
[1749157222822,10.97755386,2404.4,2402.0,1.6149]
[1749157223035,10.97755386,2404.4,2400.9,4.16498118]
[1749157223036,1.5731,2403.0,2401.4,1.6149]
[1749157223257,1.5731,2403.0,2402.0,4.16307077]
[1749157223395,4.16181122,2402.8,2401.6,16.0]
[1749157223596,10.881,2402.7,2400.8,9.002]
[1749157223796,1.5731,2403.0,2400.9,4.16510475]
[1749157224140,10.881,2402.9,2400.9,15.14265861]
[1749157224438,10.881,2402.9,2401.2,4.16444331]
[1749157224439,4.16337458,2401.9,2401.2,4.16444331]
[1749157224595,4.16312129,2402.1,2400.8,9.002]
[1749157224798,1.6416,2403.0,2401.3,1.6356]
[1749157225116,4.15978172,2404.0,2402.2,10.97755386]
[1749157225303,10.97755386,2404.4,2402.6,16.0]
[1749157225502,1.6416,2403.3,2402.4,16.0]
[1749157225702,1.6416,2403.3,2402.4,20.16238872]
[1749157225904,1.6416,2404.2,2402.4,16.0]
[1749157226131,1.6416,2404.2,2403.0,4.16137934]
[1749157226132,15.03856075,2404.1,2403.0,4.16137934]
[1749157226291,15.03856075,2404.1,2402.6,16.0]
[1749157226292,10.879,2404.1,2403.3,4.16093514]
[1749157226494,4.1587064,2404.6,2403.9,4.15979424]
[1749157226722,1.5169,2404.7,2403.2,4.1611185]
[1749157226929,1.5169,2404.7,2403.4,16.0]
[1749157227094,10.97755386,2404.4,2402.5,1.6356]
[1749157227301,4.16198443,2402.7,2402.6,0.34744968]
[1749157227897,10.879,2402.7,2401.0,9.002]
[1749157228096,15.1393758,2402.8,2401.1,0.34766673]
[1749157228097,10.879,2402.8,2401.1,0.34766673]
[1749157228328,10.879,2402.8,2401.2,4.16458437]
[1749157228502,1.5169,2403.2,2401.4,4.16423752]
[1749157228695,1.5169,2403.2,2401.6,16.0]
[1749157228896,4.16129166,2403.1,2401.8,4.16354058]
[1749157229099,4.16146483,2403.0,2401.2,1.5081]
[1749157229325,4.16146483,2403.0,2401.1,0.34766673]
[1749157229326,4.16215766,2402.6,2401.1,0.34766673]
[1749157229528,12.94344648,2402.9,2401.3,16.0]
[1749157229852,5.75609046,2403.4,2401.9,4.16337066]
[1749157230150,1.5953,2403.9,2402.3,16.0]
[1749157230295,1.5953,2403.9,2402.5,17.5345]
[1749157230645,4.15805249,2405.0,2402.4,4.16250416]
[1749157230646,4.15811864,2405.0,2404.4,4.15896473]
[1749157230812,4.15783127,2405.1,2403.9,9.001]
[1749157231016,0.57531313,2405.0,2403.9,9.001]
[1749157231235,4.1586658,2404.7,2404.1,4.15953636]
[1749157231537,0.57531313,2405.0,2403.9,13.16089176]
[1749157231703,4.15870282,2404.6,2404.0,4.15970568]
[1749157232037,4.15886922,2404.5,2403.9,13.16074808]
[1749157232196,0.57531313,2405.0,2403.9,9.001]
[1749157232397,1.5953,2405.2,2404.0,20.15973377]
[1749157232623,1.5953,2405.2,2404.3,16.0]
[1749157232823,12.4673,2405.8,2403.9,9.001]
[1749157233028,4.15741442,2405.4,2404.8,4.15831359]
[1749157233215,16.62402804,2405.8,2405.0,4.15797951]
[1749157233216,4.15708089,2405.6,2405.0,4.15797951]
[1749157233431,1.5953,2405.8,2404.6,4.15855036]
[1749157233432,0.41570809,2405.5,2404.6,4.15855036]
[1749157233631,4.15706519,2405.6,2405.0,4.15790361]
[1749157233869,4.15646997,2405.9,2404.6,16.0]
[1749157234015,4.15639652,2406.0,2404.6,4.15869583]
[1749157234355,1.5349,2406.4,2405.1,4.15783127]
[1749157234356,5.69049497,2406.4,2405.1,4.15783127]
[1749157234550,1.5349,2407.0,2405.3,16.0]
[1749157234758,1.5349,2407.0,2405.7,16.0]
[1749157234903,1.5349,2407.0,2405.7,20.15679428]
[1749157235102,1.5349,2407.7,2406.4,16.0]
[1749157235298,4.15454923,2407.0,2406.4,16.0]
[1749157235502,4.15415595,2407.3,2406.3,16.0]
[1749157235698,1.5349,2407.7,2407.0,4.15454923]
[1749157235999,1.5349,2407.7,2406.6,8.994]
[1749157236200,12.4019,2407.7,2406.6,8.994]
[1749157236626,1.5349,2408.3,2407.0,4.15454923]
[1749157236826,4.15192855,2408.6,2407.9,4.15290304]
[1749157237031,0.66666667,2408.9,2407.9,4.15290304]
[1749157237032,4.15200998,2408.5,2407.9,4.15290304]
[1749157237245,4.15276646,2408.1,2407.4,16.0]
[1749157237462,4.15276646,2408.1,2406.6,13.14922965]
[1749157237463,1.5349,2407.7,2406.6,8.994]
[1749157237753,4.15439876,2407.1,2406.6,8.994]
[1749157237930,16.0,2407.5,2405.4,8.99]
[1749157238239,4.15608915,2406.2,2405.4,9.33704523]
[1749157238536,2.07770891,2406.1,2405.4,0.34704523]
[1749157238696,4.15707341,2405.6,2405.4,0.34704523]
[1749157238902,10.861,2405.8,2405.4,0.34704523]
[1749157239138,4.15713988,2405.5,2405.4,0.34704523]
[1749157239542,5.81923988,2405.5,2405.4,0.34704523]
[1749157239741,1.6621,2406.3,2405.5,4.15704982]
[1749157239902,8.99,2407.8,2405.9,4.15631275]
[1749157239903,4.15546211,2406.5,2405.9,4.15631275]
[1749157240237,1.6621,2406.8,2406.0,0.34695869]
[1749157240437,4.15610323,2406.1,2406.0,0.34695869]
[1749157240941,1.6621,2406.1,2404.3,8.99]
[1749157241098,4.15644873,2405.9,2404.3,9.889]
[1749157241298,1.6621,2406.1,2404.3,8.99]
[1749157241511,4.1557033,2406.4,2405.0,4.15800415]
[1749157241712,4.15537964,2406.6,2406.0,4.15622672]
[1749157241913,4.15537964,2406.6,2405.4,1.5134]
[1749157241914,4.15656753,2405.9,2405.4,1.5134]
[1749157242113,4.15656753,2405.9,2405.3,4.15737222]
[1749157242114,1.6621,2406.3,2405.0,4.15799452]
[1749157242339,0.58177834,2406.2,2404.6,16.0]
[1749157242638,10.859,2406.1,2405.3,4.15745689]
[1749157242840,15.01522156,2406.1,2405.4,4.15729642]
[1749157243003,10.859,2406.1,2405.5,4.1571269]
[1749157243202,10.859,2406.0,2405.5,4.15701116]
[1749157243516,4.15482452,2406.9,2406.3,4.15563678]
[1749157243712,4.15528472,2406.6,2405.8,4.15662149]
[1749157243925,10.858,2406.9,2405.9,4.1563283]
[1749157244112,10.857,2406.8,2406.3,4.1556572]
[1749157244312,4.15526122,2406.6,2405.8,1.5922]
[1749157244544,1.5732,2407.0,2405.8,1.5922]
[1749157244712,4.15235414,2408.3,2405.9,20.15644873]
[1749157244922,4.15355667,2407.6,2407.0,4.15443499]
[1749157245118,4.15416198,2407.3,2406.7,4.15494478]
[1749157245317,10.857,2407.2,2406.1,16.0]
[1749157245520,4.15454923,2407.0,2405.5,8.989]
[1749157245716,10.857,2406.9,2405.5,8.989]
[1749157245953,1.5732,2407.1,2405.7,16.0]
[1749157246158,1.5732,2407.6,2406.0,1.5922]
[1749157246307,1.5732,2407.6,2406.6,4.15512463]
[1749157246308,10.856,2407.5,2406.6,4.15512463]
[1749157246508,1.5732,2407.6,2406.5,4.15532302]
[1749157246509,10.856,2407.4,2406.5,4.15532302]
[1749157246729,10.856,2407.4,2406.0,17.5922]
[1749157247008,4.15465573,2407.0,2406.0,1.5922]
[1749157247360,10.856,2407.4,2404.9,1.5922]
[1749157247361,1.5732,2407.2,2404.9,1.5922]
[1749157247503,4.15605039,2406.2,2405.6,4.15682909]
[1749157247703,4.15714019,2405.5,2405.0,4.1579074]
[1749157247948,10.853,2406.0,2405.1,4.15779459]
[1749157248150,1.5732,2406.7,2405.5,16.0]
[1749157248351,1.5732,2407.4,2405.8,1.5922]
[1749157248661,1.5732,2407.9,2406.6,16.0]
[1749157248863,1.5732,2407.9,2406.7,16.0]
[1749157249008,1.5732,2407.9,2406.8,4.15489446]
[1749157249214,1.5732,2407.9,2406.9,0.41548945]
[1749157249413,1.5732,2407.9,2406.9,4.15472184]
[1749157249626,15.00567442,2408.1,2407.2,16.0]
[1749157249811,10.853,2408.1,2407.2,4.15417553]
[1749157250010,1.5732,2408.4,2407.2,4.15420405]
[1749157250213,1.5732,2408.8,2407.3,1.5922]
[1749157250507,0.66666667,2408.9,2407.3,1.5922]
[1749157250822,0.2305173,2409.5,2408.8,16.0]
[1749157251070,0.2305173,2409.5,2408.5,1.5922]
[1749157251071,0.2305173,2409.5,2409.0,4.15110004]
[1749157251271,0.2305173,2409.5,2408.5,10.5772]
[1749157251272,0.2305173,2409.5,2408.8,16.0]
[1749157251493,0.2305173,2409.5,2408.9,4.15126731]
[1749157251814,0.2305173,2409.5,2408.5,14.72908166]
[1749157251815,0.2305173,2409.5,2408.5,10.5772]
[1749157252093,1.5732,2409.3,2407.4,16.0]
[1749157252263,10.849,2409.2,2408.3,4.15214963]
[1749157252469,10.849,2409.2,2407.8,4.15310622]
[1749157252470,4.15197441,2408.5,2407.9,4.15286994]
[1749157252807,10.849,2409.2,2408.2,4.15231737]
[1749157253012,10.849,2409.2,2407.7,16.0]
[1749157253013,10.844,2409.1,2407.7,4.15334136]
[1749157253179,4.15174267,2408.7,2407.7,2.28110614]
[1749157253375,4.15123151,2409.0,2407.8,4.15312057]
[1749157253673,4.15091494,2409.2,2407.3,26.15172387]
[1749157253674,4.15336402,2407.7,2407.3,8.985]
[1749157253895,1.5004,2408.8,2407.3,8.985]
[1749157253896,4.1519906,2408.5,2407.3,8.985]
[1749157254101,4.15242418,2408.3,2407.3,8.985]
[1749157254259,14.99634275,2408.3,2407.7,4.15332315]
[1749157254457,4.15161705,2408.7,2407.9,4.15298454]
[1749157254762,10.844,2408.6,2407.3,8.985]
[1749157255060,1.5004,2408.0,2405.7,1.6418]
[1749157255361,1.5004,2407.8,2405.8,10.9999702]
[1749157255509,1.5004,2407.8,2406.6,1.6418]
[1749157256073,1.5004,2407.8,2406.2,10.9999702]
[1749157256214,1.5004,2407.8,2407.0,4.15451272]
[1749157256215,4.15368415,2407.6,2407.0,4.15451272]
[1749157256419,1.5004,2408.7,2407.2,16.0]
[1749157256727,1.5004,2408.7,2407.9,4.15290141]
[1749157256938,1.5004,2408.7,2407.4,4.15377942]
[1749157256939,1.5004,2409.4,2407.8,16.0]
[1749157257123,1.5004,2409.4,2408.5,16.0]
[1749157257312,1.5004,2409.4,2408.7,4.15152491]
[1749157257538,0.2305173,2409.5,2409.2,4.15074316]
[1749157257754,0.2305173,2409.5,2409.1,4.15087867]
[1749157257953,0.2305173,2409.5,2408.6,1.6418]
[1749157258114,0.2305173,2409.5,2409.4,4.15041089]
[1749157258315,0.2305173,2409.5,2408.7,1.76418]
[1749157258316,4.38087973,2409.5,2408.7,16.0]
[1749157258530,1.5707,2409.3,2408.4,8.979]
[1749157258724,4.15110843,2409.0,2408.4,8.979]
[1749157259059,10.841,2408.9,2407.6,1.5993]
[1749157259361,4.15209871,2408.5,2407.6,1.5993]
[1749157259527,10.841,2408.9,2407.7,2.17529425]
[1749157259861,4.15201951,2408.5,2407.8,4.15316886]
[1749157260163,10.838,2408.4,2406.9,4.15459288]
[1749157260363,4.15305348,2407.9,2407.0,1.5993]
[1749157260527,10.838,2408.4,2406.6,14.73252565]
[1749157260721,4.15414916,2407.3,2406.6,8.978]
[1749157260924,21.8379702,2408.4,2405.1,1.247658]
[1749157260925,4.15437663,2407.1,2405.6,10.5773]
[1749157261165,4.15456697,2407.0,2405.7,4.15679428]
[1749157261368,1.5707,2407.2,2405.7,16.0]
[1749157261568,1.5707,2407.2,2406.3,4.15565133]
[1749157261782,10.9999702,2407.1,2405.6,8.978]
[1749157261991,4.15503407,2406.8,2405.6,8.978]
[1749157262125,1.5707,2407.2,2406.9,4.15462242]
[1749157262322,4.15472184,2406.9,2405.6,8.978]
[1749157262525,4.15457553,2407.0,2405.6,8.978]
[1749157262726,10.837,2407.1,2405.7,1.31350178]
[1749157262727,4.15510169,2406.7,2405.7,1.31350178]
[1749157262978,4.15628107,2406.0,2405.6,8.978]
[1749157263292,4.15628107,2406.0,2404.2,0.2657628]
[1749157263293,1.2468,2405.1,2402.0,4.16319733]
[1749157263489,0.2,2405.6,2401.9,5.7625594]
[1749157263490,4.16113834,2403.2,2401.9,5.7625594]
[1749157263638,10.95,2403.3,2402.0,0.57625594]
[1749157263837,10.95,2403.3,2401.9,1.5993]
[1749157263838,4.1611185,2403.2,2401.9,1.5993]
[1749157264142,10.95,2403.1,2401.9,5.7626168]
[1749157264348,1.6066,2402.9,2401.4,1.5591]
[1749157264775,4.16348598,2401.9,2400.8,1.5591]
[1749157264978,10.945,2402.8,2400.8,1.5591]
[1749157265133,11.5627411,2402.7,2400.8,2.61331]
[1749157265336,4.16370093,2401.8,2400.8,1.5591]
[1749157265529,1.6066,2401.9,2400.8,1.5591]
[1749157265780,1.6066,2403.0,2400.8,1.5591]
[1749157265990,4.16178693,2402.9,2400.9,4.16510475]
[1749157266195,4.16163802,2402.9,2400.8,21.7243775]
[1749157266396,1.6066,2403.0,2401.0,4.16493127]
[1749157266542,1.6066,2403.0,2400.9,3.07073775]
[1749157266745,1.6066,2403.0,2400.9,4.16496525]
[1749157267053,1.6066,2403.0,2402.2,4.16271036]
[1749157267253,1.6066,2403.0,2402.5,4.16220532]
[1749157267452,1.6066,2403.5,2402.1,8.983]
[1749157267641,1.6066,2402.4,2401.2,1.5591]
[1749157267844,1.6066,2402.4,2400.0,4.16660171]
[1749157267845,4.16436473,2401.4,2400.6,4.16547668]
[1749157268044,4.16436473,2401.4,2400.0,8.987]
[1749157268045,4.16590507,2400.5,2400.0,10.5461]
[1749157268341,12.5576,2401.3,2398.1,2.0989132]
[1749157268342,4.16510475,2400.9,2398.4,4.16935859]
[1749157268543,5.76906666,2400.0,2398.7,0.42460022]
[1749157268772,16.75206666,2400.0,2398.7,0.42460022]
[1749157269165,4.16973938,2398.3,2397.6,0.005]
[1749157269343,0.55,2399.7,2397.3,1.5752273]
[1749157269540,1.2506,2399.8,2397.3,1.5752273]
[1749157269850,10.995,2399.7,2397.3,1.5752273]
[1749157270054,10.995,2399.7,2396.8,13.57638964]
[1749157270055,0.55,2399.3,2396.8,9.404223]
[1749157270272,17.2506,2399.4,2396.8,9.404223]
[1749157270273,1.2506,2399.4,2396.8,9.404223]
[1749157270459,11.007,2399.3,2397.9,4.17030257]
[1749157270650,11.007,2399.3,2397.0,4.17174224]
[1749157270854,1.6024,2399.2,2397.0,4.17188151]
[1749157271192,1.6024,2399.2,2396.8,9.404223]
[1749157271193,4.1684035,2399.0,2397.1,0.41718815]
[1749157271396,11.022,2399.1,2396.8,9.404223]
[1749157271740,4.16892483,2398.7,2396.8,9.404223]
[1749157271981,4.17018071,2398.0,2397.3,4.17124275]
[1749157272181,4.17134185,2397.4,2396.8,9.404223]
[1749157272443,1.6024,2397.5,2396.8,9.404223]
[1749157272760,4.17118545,2397.4,2396.8,9.404223]
[1749157272969,4.17240372,2396.7,2396.6,25.88842975]
[1749157273277,31.78640372,2396.7,2396.6,23.73316054]
[1749157273486,15.78240372,2396.7,2396.6,21.70277745]
[1749157273685,31.79040372,2396.7,2396.6,21.33344649]
[1749157274078,31.79040372,2396.7,2396.6,19.93134649]
[1749157274280,30.65597154,2396.7,2396.6,6.10991418]
[1749157274476,41.81897154,2396.7,2396.6,6.10991418]
[1749157274791,41.81897154,2396.7,2396.6,1.94268538]
[1749157274792,31.91340372,2396.7,2396.6,1.94268538]
[1749157275195,4.17240372,2396.7,2396.6,1.94268538]
[1749157275361,4.17205557,2396.9,2396.6,1.94268538]
[1749157275362,16.0,2397.5,2396.6,1.94268538]
[1749157275557,4.17236382,2396.8,2396.6,1.94268538]
[1749157275756,0.3463002,2397.5,2396.6,1.94268538]
[1749157276095,0.3463002,2397.5,2397.4,20.17118545]
[1749157276266,11.205,2399.1,2397.4,18.43425409]
[1749157276456,0.3463002,2399.0,2397.8,4.17048961]
[1749157276656,0.3463002,2399.0,2398.9,4.16857726]
[1749157276900,0.2,2401.7,2400.3,4.16613736]
[1749157276901,4.16371736,2401.7,2400.3,4.16613736]
[1749157277066,4.42746895,2402.2,2398.4,5.79228932]
[1749157277067,0.26449353,2402.2,2399.7,9.008]
[1749157277267,4.16285072,2402.2,2399.7,9.9088]
[1749157277593,11.218,2402.4,2400.4,16.0]
[1749157277766,15.38141583,2402.5,2400.0,16.0]
[1749157278096,9.93356782,2403.6,2400.0,16.0]
[1749157278097,4.1617227,2402.9,2400.5,16.0]
[1749157278297,11.219,2402.8,2400.6,1.623]
[1749157278482,11.227,2402.7,2401.0,16.0]
[1749157278658,11.227,2402.7,2401.6,4.16386838]
[1749157278861,4.16269806,2402.3,2401.2,16.0]
[1749157279114,9.008,2404.2,2401.2,16.0]
[1749157279274,11.225,2404.1,2401.2,16.0]
[1749157279476,4.16129166,2403.1,2400.6,1.623]
[1749157279797,4.16348016,2401.9,2400.6,16.0]
[1749157280107,4.16440077,2401.4,2400.5,9.005]
[1749157280294,14.09472897,2403.2,2400.6,16.0]
[1749157280604,4.1611185,2403.2,2401.3,16.0]
[1749157280907,11.239,2403.1,2401.5,16.0]
[1749157281111,11.239,2403.0,2401.1,1.6034]
[1749157281415,4.1597417,2404.0,2401.4,16.0]
[1749157281560,18.0,2403.5,2402.4,4.16233411]
[1749157281901,4.16166607,2402.9,2402.2,9.005]
[1749157282113,11.225,2403.0,2402.2,9.005]
[1749157282398,4.15921474,2404.3,2402.3,16.0]
[1749157282604,4.16089917,2403.4,2402.6,4.16215098]
[1749157282783,4.16127529,2403.2,2402.3,16.0]
[1749157282989,11.192,2403.7,2402.8,4.16171883]
[1749157283188,11.192,2403.7,2402.3,22.66310398]
[1749157283189,9.005,2404.9,2402.6,4.16203203]
[1749157283372,11.204,2404.6,2402.8,4.16181122]
[1749157283571,4.15632313,2406.0,2403.5,16.0]
[1749157283810,11.209,2405.2,2403.8,16.0]
[1749157284141,4.15869583,2404.6,2403.6,9.003]
[1749157284411,4.16025294,2403.7,2402.5,9.003]
[1749157284622,11.208,2403.6,2402.5,9.003]
[1749157284762,4.16128298,2403.2,2401.6,1.5533]
[1749157285073,4.16321347,2402.0,2401.6,1.5533]
[1749157285274,9.93356782,2404.2,2401.6,17.5533]
[1749157285491,16.0,2403.8,2401.6,1.5533]
[1749157285701,0.55,2403.7,2401.6,1.5533]
[1749157285908,4.16230626,2402.6,2401.9,4.1633285]
[1749157286069,4.16226879,2402.6,2401.9,4.1633672]
[1749157286271,4.16192582,2402.8,2401.6,1.5533]
[1749157286272,11.198,2403.6,2401.6,17.5533]
[1749157286463,18.93656782,2404.8,2401.6,17.5533]
[1749157286788,9.93356782,2404.8,2401.6,1.5533]
[1749157286994,4.1626728,2402.4,2401.6,17.5533]
[1749157287191,11.183,2403.1,2401.6,17.5533]
[1749157287405,4.16272408,2402.3,2401.6,17.5533]
[1749157287704,11.183,2403.1,2401.6,16.0]
[1749157287889,4.16321729,2402.0,2401.5,9.003]
[1749157288063,11.172,2402.2,2401.5,9.003]
[1749157288268,11.172,2402.2,2401.5,13.16699352]
[1749157288489,4.1611185,2403.2,2401.6,4.16389073]
[1749157288694,4.16263589,2402.4,2401.6,4.16389073]
[1749157288890,4.16350018,2401.9,2401.5,9.003]
[1749157289216,4.16189365,2402.8,2401.5,9.003]
[1749157289519,4.15956075,2404.1,2401.8,16.0]
[1749157289679,0.2305173,2404.7,2401.8,16.0]
[1749157289680,4.16025294,2403.7,2401.8,4.163544]
[1749157289880,4.15896029,2404.5,2401.7,4.16371736]
[1749157290124,11.14,2403.6,2401.5,9.003]
[1749157290418,0.2305173,2404.7,2401.5,9.003]
[1749157290621,4.16125989,2403.2,2402.5,4.16216852]
[1749157290820,4.15938773,2404.2,2401.7,1.5204]
[1749157290821,4.16165412,2402.9,2401.7,1.5204]
[1749157290991,16.0,2404.2,2402.1,16.0]
[1749157291192,4.16179353,2402.9,2402.3,4.16264464]
[1749157291393,11.137,2403.2,2401.7,1.5204]
[1749157291603,4.16180481,2402.9,2402.3,4.16267611]
[1749157291899,4.16227165,2402.6,2402.0,4.16316083]
[1749157292123,11.128,2403.1,2401.7,1.5204]